[Event "1st Bella Italia International 2022"]
[Site "Lignano"]
[Date "2022.08.20"]
[Round "6.10"]
[White "Gelle, Istvan"]
[Black "Montorsi, Matteo"]
[Result "1-0"]
[ECO "A48"]
[WhiteElo "2218"]
[BlackElo "2100"]
[Annotator "TA"]
[PlyCount "75"]
[EventDate "2022.08.18"]
[EventCountry "ITA"]
[SourceTitle "playchess.com"]
[Source "ChessBase"]
[SourceQuality "1"]
[TimeControl "5400+30"]

{[%evp 18,75,40,33,54,57,79,87,94,77,107,83,76,35,40,14,51,29,118,112,163,163,173,169,169,174,276,251,362,169,287,283,269,247,411,346,796,749,980,966,1242,1129,29992,29993,29993,1063,1005,968,2085,1766,29993,29984,29984,12837,5916,4890,4890,1929,1943,1869]} 1. d4 {[%emt 0:00:03]} Nf6 {[%emt 0:02:51]} 2. Bf4 {[%emt 0:00:09]} g6 {[%emt 0:00:20]} 3. e3 {[%emt 0:00:10]} Bg7 {[%emt 0:00:12]} 4. Nf3 {[%emt 0:00:07]} d6 {[%emt 0:00:10]} 5. h3 {[%emt 0:00:09]} O-O {[%emt 0:00:23]} 6. Be2 {[%emt 0:00:07]} Nbd7 {[%emt 0:00:50]} 7. Bh2 {[%emt 0:00:23]} Qe8 {[%emt 0:01:06]} 8. c4 {[%emt 0:00:17]} e5 {[%emt 0:00:16]} 9. Nc3 {[%emt 0:00:06]} Qe7 {[%emt 0:01:29]} 10. O-O {[%emt 0:00:25]} Ne8 {[%emt 0:09:10] A48: 1 d4 Nf6 2 Nf3 g6: Torre, London and Colle Systems.} 11. b4 {[%emt 0:03:29]} e4 {[%emt 0:03:59]} 12. Nd2 {[%emt 0:00:24] White is more active.} f5 {[%emt 0:00:26] White is better.} 13. c5 {[%emt 0:01:43] [#]} c6 $146 {[%emt 0:14:29]} ({Predecessor:} 13... Ndf6 14. cxd6 cxd6 15. Qb3+ Kh8 16. Rac1 g5 17. Rc2 Bh6 18. Rfc1 f4 19. Nd5 Nxd5 20. Rxc8 Rxc8 21. Rxc8 fxe3 22. fxe3 {1-0 (56) Andrianov,N (2455)-Poldauf,D (2390) Budapest 1989}) 14. cxd6 {[%emt 0:01:06]} Nxd6 {[%emt 0:00:16]} 15. Nb3 {[%emt 0:08:15]} Nf6 {[%emt 0:14:09]} 16. a4 {[%emt 0:08:31][%cal Ba2a4,Ba4a5][%mdl 32]} Be6 {[%emt 0:08:13]} 17. Nc5 {[%emt 0:10:23]} Bd5 {[%emt 0:04:56] White stays focused until the end.} (17... Bf7 $11) 18. b5 $16 {[%emt 0:06:02]} Rf7 {[%emt 0:07:15]} (18... Rad8 $16 {was necessary.}) 19. bxc6 {[%emt 0:04:38]} bxc6 {[%emt 0:01:09]} 20. Rb1 {[%emt 0:00:37]} g5 {[%emt 0:01:29]} 21. a5 {[%emt 0:02:32]} Bh6 {[%emt 0:04:51]} (21... Raf8 {was worth a try.} 22. Nxd5 cxd5) 22. Be5 $18 {[%emt 0:05:56]} f4 {[%emt 0:02:43]} (22... Nd7 $142) 23. Bxf6 {[%emt 0:07:06]} (23. a6 $142) 23... Rxf6 {[%emt 0:03:42]} (23... Qxf6 $142 24. Nxd5 cxd5) 24. Nxd5 {[%emt 0:00:59]} cxd5 {[%emt 0:00:02]} 25. Qb3 {[%emt 0:00:24]} Qf7 {[%emt 0:00:29]} (25... Raf8 {keeps fighting.} 26. Qxd5+ Qf7 27. Qxf7+ R8xf7) 26. Bh5 {[%emt 0:00:39]} Qxh5 {[%emt 0:01:39]} (26... Rg6 27. Bxg6 hxg6) 27. Qxd5+ {[%emt 0:00:06]} Kg7 {[%emt 0:02:31]} 28. Qxa8 {[%emt 0:00:10]} f3 {[%emt 0:00:49]} 29. Rb8 {[%emt 0:09:16] [#] Rg8+ would kill now.} fxg2 {[%emt 0:03:26]} 30. Rg8+ {[%emt 0:00:21]} Kf7 {[%emt 0:00:26]} 31. Kxg2 {[%emt 0:02:01]} (31. Qd5+ $142 Ke7 32. Rb1 Qd1+ 33. Rxd1 Rg6 34. Rb1 Rxg8 35. Qe6+ Kf8 36. Nd7+ Kg7 37. Qf6#) 31... Qf3+ {[%emt 0:01:35]} 32. Kh2 {[%emt 0:00:32]} Qe2 {[%emt 0:03:57]} 33. Kg1 {[%emt 0:01:36] [#] Threatening mate with Qd5+.} Qh5 {[%emt 0:02:13]} 34. Nxe4 {[%emt 0:02:34]} Qxh3 {[%emt 0:01:44]} 35. Nxd6+ {[%emt 0:01:17]} (35. Qxa7+ $142 Kxg8 36. Nxf6+ Kf8 37. Qxh7 Nc4 38. Rb1 Nd6 39. Nd7+ Qxd7 40. Qxd7) 35... Rxd6 {[%emt 0:00:02] White is clearly winning.} 36. Qe8+ {[%emt 0:00:50]} Kf6 {[%emt 0:00:05]} 37. Qe5+ {[%emt 0:00:57]} Kf7 {[%emt 0:00:06]} 38. Qxd6 {[%emt 0:00:37] Weighted Error Value: White=0.20 (precise) /Black=1.23} 1-0

[Event "1st Bella Italia International 2022"]
[Site "Lignano"]
[Date "2022.08.20"]
[Round "6.11"]
[White "Brotto, Alessandro"]
[Black "Seres, Bela"]
[Result "1-0"]
[ECO "A69"]
[WhiteElo "2027"]
[BlackElo "2207"]
[Annotator "TA"]
[PlyCount "82"]
[EventDate "2022.08.18"]
[EventCountry "ITA"]
[SourceTitle "playchess.com"]
[Source "ChessBase"]
[SourceQuality "1"]
[TimeControl "5400+30"]

{[%evp 23,82,10,57,48,48,28,157,140,112,129,171,190,176,175,210,176,173,185,453,443,1856,1811,29981,29977,29991,1062,29978,3422,29986,648,710,667,647,648,580,289,383,288,306,279,298,300,278,219,422,406,460,459,418,391,379,358,422,412,789,774,1429,1391,29983,2226,29991]} 1. e4 {[%emt 0:05:13]} c5 {[%emt 0:00:04]} 2. Nf3 {[%emt 0:01:00]} g6 {[%emt 0:00:08]} 3. d4 {[%emt 0:01:28][%cal Bd2d4,Bd4d5][%mdl 32]} Bg7 {[%emt 0:00:07]} 4. d5 {[%emt 0:05:58]} d6 {[%emt 0:01:55]} 5. Be2 {[%emt 0:02:32]} Nf6 {[%emt 0:02:20]} 6. Nfd2 {[%emt 0:01:56]} e6 {[%emt 0:02:11]} 7. O-O {[%emt 0:03:59]} O-O {[%emt 0:00:39]} 8. c4 {[%emt 0:01:20][%cal Bc2c4,Bc4d5][%mdl 32]} exd5 {[%emt 0:01:17]} 9. cxd5 {[%emt 0:00:29]} a6 {[%emt 0:01:42]} 10. a4 {[%emt 0:00:23]} Re8 {[%emt 0:00:32]} 11. Nc3 {[%emt 0:00:27]} Nbd7 {[%emt 0:01:02]} 12. f4 {[%emt 0:04:32][%cal Bf2f4,Bf4g5,Bg5f6][%mdl 32]} Qc7 {[%emt 0:03:50]} (12... c4 $11) 13. g4 {[%emt 0:07:53] Threatens to win with g5. A69: Modern Benoni: Four Pawns Attack with 9...Re8.} h6 {[%emt 0:02:15][%cal Oc5c4]} 14. h4 {[%emt 0:03:09] [#]} g5 $146 {[%emt 0:11:34]} (14... Nh7 $11) ({Predecessor:} 14... Rb8 15. g5 hxg5 16. hxg5 Nh7 17. Bd3 Ndf8 18. a5 Qe7 19. Nf3 f6 20. Qe1 fxg5 21. fxg5 {½-½ (44) Oliver,G (2164)-Morris,M (1985) Parramatta 2008}) 15. hxg5 {[%emt 0:03:52] White is clearly better.} (15. fxg5 $6 hxg5 16. hxg5 Nh7 $11) 15... hxg5 {[%emt 0:03:06]} 16. e5 $1 {[%emt 0:04:10]} (16. fxg5 Nh7 $14) 16... dxe5 {[%emt 0:13:47]} 17. fxg5 {[%emt 0:01:03]} e4 {[%emt 0:01:02]} 18. Kg2 {[%emt 0:09:07] Inhibits Qg3+.} e3 {[%emt 0:06:56]} 19. gxf6 {[%emt 0:01:05]} exd2 {[%emt 0:00:28]} 20. fxg7 {[%emt 0:02:20] Really sharp!} dxc1=Q {[%emt 0:45:35]} (20... Re3 21. Rf3 (21. Bxd2 {gets mated.} Qg3+ 22. Kh1 Qh4+ 23. Kg2 Rg3+ 24. Kf2 Rh3+ 25. Kg2 Qg3#) 21... Rxf3 22. Bxf3 dxc1=R 23. Qxc1 Qe5) 21. Qxc1 $18 {[%emt 0:00:29]} Qe5 {[%emt 0:00:00]} (21... Rxe2+ $142 22. Nxe2 Qe5) 22. Rf5 $1 {[%emt 0:01:52]} Qe3 {[%emt 0:00:00]} 23. Qh1 {[%emt 0:02:52][%csl Gg7][%cal Rh1h8]} Kxg7 {[%emt 0:00:00] [#]} 24. Qh5 {[%emt 0:14:23]} (24. Rxf7+ $142 $3 {[%mdl 512]} Kxf7 25. Qh7+ Kf6 26. Rf1+ Qf4 27. Rxf4+ Ke5 28. Qg6 Kxf4 29. Qf5+ Ke3 30. Qg5+ Kd4 31. Qf4+ Re4 32. Qxe4#) 24... f6 {[%emt 0:00:00]} 25. Rh1 {[%emt 0:03:17] White wants to mate with d6.} Rg8 {[%emt 0:00:00]} 26. Qh7+ {[%emt 0:03:02]} (26. d6 $142 Nf8 27. Rxf6 $3 {[%mdl 512]} Be6 28. Rf3 Qxf3+ 29. Bxf3 Ng6 30. Qh6+ Kf7 31. Bxb7) 26... Kf8 {[%emt 0:00:00]} 27. Rhf1 {[%emt 0:00:25] Rxf6+ would kill now.} Qe7 {[%emt 0:00:00]} 28. Qh6+ {[%emt 0:01:01]} Ke8 {[%emt 0:00:00]} 29. g5 {[%emt 0:08:42]} (29. d6 $142 Qg7 30. Qxg7 Rxg7 31. Nd5) 29... Qg7 {[%emt 0:00:00]} 30. Bh5+ {[%emt 0:02:06]} Kd8 {[%emt 0:00:00] [#] ...Qxh6 is the strong threat.} 31. Qxg7 {[%emt 0:00:08]} Rxg7 {[%emt 0:00:00]} 32. g6 {[%emt 0:00:41]} b5 {[%emt 0:00:00]} 33. Ne4 {[%emt 0:01:25] Black must now prevent a5.} ({Much less strong is} 33. axb5 $6 axb5 34. Kg3 (34. Nxb5 Ra6 $16) 34... b4 $16) 33... Bb7 $2 {[%emt 0:00:00]} (33... bxa4 34. Nxf6 Nf8) 34. Nxf6 {[%emt 0:01:03] And now Kg3 would win.} Nxf6 {[%emt 0:00:00]} 35. Rxf6 {[%emt 0:00:02]} Bxd5+ {[%emt 0:07:30]} 36. Kg3 {[%emt 0:00:05]} Ke7 {[%emt 0:00:30] Inhibits Rd6.} 37. a5 {[%emt 0:01:26]} b4 {[%emt 0:00:00]} 38. Kh4 {[%emt 0:00:09] Hoping for Kg5.} c4 {[%emt 0:00:00]} (38... Bc4 $142 39. R1f4 Rd8) 39. Kg5 {[%emt 0:00:53] aiming for Re1+.} Rgg8 {[%emt 0:00:00]} 40. Re1+ {[%emt 0:00:08]} Kd7 {[%emt 0:00:00]} 41. Rd1 {[%emt 0:00:07]} (41. Bg4+ $142 Kd8 42. Rd1 Rg7 43. Rxd5+ Ke8 44. Re5+ Kd8 45. Rf8+ Kc7 46. Rxa8) 41... Rh8 {[%emt 0:00:59] Weighted Error Value: White=0.51/Black=1.48} 1-0

[Event "1st Bella Italia International 2022"]
[Site "Lignano"]
[Date "2022.08.20"]
[Round "6.12"]
[White "Massironi, Marco"]
[Black "Heredia Serrano, Carla"]
[Result "1-0"]
[ECO "B18"]
[WhiteElo "2200"]
[BlackElo "2090"]
[Annotator "NA RC"]
[PlyCount "53"]
[EventDate "2022.08.18"]
[EventCountry "ITA"]
[SourceTitle "playchess.com"]
[Source "ChessBase"]
[SourceQuality "1"]
[TimeControl "5400+30"]

1. e4 {[%emt 0:00:04]} c6 {[%emt 0:16:36]} 2. d4 {[%emt 0:00:08]} d5 {[%emt 0:00:02]} 3. Nc3 {[%emt 0:00:08]} dxe4 {[%emt 0:00:19]} 4. Nxe4 {[%emt 0:00:07]} Bf5 {[%emt 0:00:17]} 5. Bd3 {[%emt 0:00:09]} Qxd4 {[%emt 0:00:56]} 6. Nf3 {[%emt 0:00:06]} Qd8 {[%emt 0:00:36]} 7. Qe2 {[%emt 0:00:08]} e6 {[%emt 0:00:59]} 8. O-O {[%emt 0:00:12]} Bxe4 {[%emt 0:04:54]} 9. Bxe4 {[%emt 0:00:03]} Nf6 {[%emt 0:02:51]} 10. Bf4 {[%emt 0:03:04]} Be7 {[%emt 0:06:02]} 11. Rad1 {[%emt 0:00:43]} Qa5 {[%emt 0:21:42]} 12. Ne5 {[%emt 0:04:06]} Na6 {[%emt 0:13:48]} 13. Nxc6 {[%emt 0:02:37]} bxc6 {[%emt 0:02:27]} 14. Bxc6+ {[%emt 0:00:09]} Kf8 {[%emt 0:00:26]} 15. Bxa8 {[%emt 0:00:11]} h6 {[%emt 0:02:56]} 16. Bf3 {[%emt 0:03:18]} Kg8 {[%emt 0:04:44]} 17. a3 {[%emt 0:01:15]} Kh7 {[%emt 0:00:25]} 18. b4 {[%emt 0:01:00]} Qf5 {[%emt 0:03:55]} 19. Be3 {[%emt 0:04:19]} Nc7 {[%emt 0:01:21]} 20. c4 {[%emt 0:01:51]} e5 {[%emt 0:00:59]} 21. g3 {[%emt 0:03:13]} Ne6 {[%emt 0:02:31]} 22. Bg2 {[%emt 0:02:29]} a6 {[%emt 0:05:25]} 23. f4 {[%emt 0:02:11]} e4 {[%emt 0:01:00]} 24. Bd4 {[%emt 0:00:58]} a5 {[%emt 0:06:32]} 25. Bxf6 {[%emt 0:00:54]} Qxf6 {[%emt 0:00:05]} 26. Qxe4+ {[%emt 0:00:27]} g6 {[%emt 0:00:02]} 27. f5 {[%emt 0:00:43]} 1-0

[Event "1st Bella Italia International 2022"]
[Site "Lignano"]
[Date "2022.08.20"]
[Round "6.13"]
[White "Etxagibel Larranaga, Asier"]
[Black "Titze, Leo"]
[Result "1/2-1/2"]
[ECO "A36"]
[WhiteElo "2118"]
[BlackElo "2071"]
[Annotator "NA RC"]
[PlyCount "48"]
[EventDate "2022.08.18"]
[EventCountry "ITA"]
[SourceTitle "playchess.com"]
[Source "ChessBase"]
[SourceQuality "1"]
[TimeControl "5400+30"]

1. c4 {[%emt 0:00:03]} c5 {[%emt 0:15:13]} 2. g3 {[%emt 0:00:08]} g6 {[%emt 0:00:05]} 3. Bg2 {[%emt 0:00:03]} Bg7 {[%emt 0:00:05]} 4. Nc3 {[%emt 0:00:05]} Nc6 {[%emt 0:00:05]} 5. e3 {[%emt 0:00:13]} e6 {[%emt 0:01:04]} 6. Nge2 {[%emt 0:00:06]} Nge7 {[%emt 0:01:01]} 7. O-O {[%emt 0:00:06]} O-O {[%emt 0:01:01]} 8. d4 {[%emt 0:10:28]} d6 {[%emt 0:03:39]} 9. b3 {[%emt 1:23:48]} b6 {[%emt 0:01:49]} 10. Bb2 {[%emt 0:00:00]} Bb7 {[%emt 0:00:26]} 11. Qd2 {[%emt 0:00:00]} cxd4 {[%emt 0:08:31]} 12. Nxd4 {[%emt 0:00:00]} Qd7 {[%emt 0:03:17]} 13. Nxc6 {[%emt 0:00:00]} Bxc6 {[%emt 0:01:54]} 14. Ne4 {[%emt 0:00:00]} Bxe4 {[%emt 0:04:45]} 15. Bxe4 {[%emt 0:00:00]} Bxb2 {[%emt 0:02:08]} 16. Qxb2 {[%emt 0:00:00]} Rac8 {[%emt 0:00:46]} 17. Rfd1 {[%emt 0:00:00]} Rfd8 {[%emt 0:03:39]} 18. Rd2 {[%emt 0:00:00]} Qc7 {[%emt 0:01:07]} 19. Rad1 {[%emt 0:00:00]} Rd7 {[%emt 0:02:36]} 20. h4 {[%emt 0:00:00]} Qc5 {[%emt 0:02:09]} 21. Bf3 {[%emt 0:00:00]} h5 {[%emt 0:05:45]} 22. Qf6 {[%emt 0:00:00]} Rcd8 {[%emt 0:06:14]} 23. g4 {[%emt 0:00:00]} hxg4 {[%emt 0:01:52]} 24. Bxg4 {[%emt 0:00:00]} Nf5 {[%emt 0:08:33]} 1/2-1/2

[Event "1st Bella Italia International 2022"]
[Site "Lignano"]
[Date "2022.08.20"]
[Round "6.14"]
[White "Cino, Giuseppe Adalberto"]
[Black "Della Pietra, Andrea"]
[Result "1/2-1/2"]
[ECO "C25"]
[WhiteElo "1976"]
[BlackElo "2172"]
[Annotator "TA"]
[PlyCount "75"]
[EventDate "2022.08.18"]
[EventCountry "ITA"]
[SourceTitle "playchess.com"]
[Source "ChessBase"]
[SourceQuality "1"]
[TimeControl "5400+30"]

{[%evp 9,75,12,29,14,37,30,69,69,87,31,33,29,55,54,55,62,62,0,0,0,38,-11,52,47,79,10,60,74,72,79,87,22,14,19,72,63,108,75,146,83,259,18,26,0,58,0,-10,-21,0,-93,-91,-100,-94,-114,-97,-150,-137,-134,-139,-139,-111,-107,-107,-112,-71,-70,-64,-81]} 1. e4 {[%emt 0:02:49]} d6 {[%emt 0:01:20]} 2. Nc3 {[%emt 0:00:19]} e5 {[%emt 0:01:49]} 3. Nge2 {[%emt 0:00:31]} Nf6 {[%emt 0:01:43]} 4. g3 {[%emt 0:01:04]} h5 {[%emt 0:04:34]} 5. h3 {[%emt 0:00:40]} c5 {[%emt 0:05:26]} 6. Bg2 {[%emt 0:00:24] [#] C25: Vienna Game: Alternatives to 2...Nf6.} Be6 $146 {[%emt 0:00:33]} ({Predecessor:} 6... h4 7. g4 Nc6 8. d3 Nd4 9. Bg5 Be7 10. Nxd4 cxd4 11. Ne2 Qb6 12. Qc1 Be6 {0-1 (37) Hinrichs,L (2205)-Lubbe,N (2496) Lueneburg 2015}) 7. d3 {[%emt 0:00:51]} Qd7 {[%emt 0:06:27]} 8. f4 {[%emt 0:09:32] And now f5 would win. White is slightly better.} g6 {[%emt 0:15:40] Inhibits f5.} 9. Be3 {[%emt 0:07:32]} (9. Rf1 $1 $16) 9... Nc6 $14 {[%emt 0:02:06][%cal Bb8c6,Bc6d4,Bd4f5][%mdl 32]} 10. Qd2 {[%emt 0:01:13]} Be7 {[%emt 0:11:23]} 11. Nd5 {[%emt 0:03:23]} Bxd5 {[%emt 0:07:06]} 12. exd5 {[%emt 0:00:36]} Nd4 {[%emt 0:00:09]} 13. c3 {[%emt 0:00:42]} (13. O-O-O $14) 13... Nf5 $11 {[%emt 0:00:36]} 14. Bf2 {[%emt 0:00:32]} O-O-O {[%emt 0:06:06]} 15. O-O-O {[%emt 0:00:43]} (15. b4 $14) 15... Qa4 {[%emt 0:01:11]} (15... Bf8 $11) 16. Kb1 $14 {[%emt 0:00:44]} exf4 {[%emt 0:00:25] [#]} 17. Nxf4 {[%emt 0:01:22]} ({But not} 17. Qxf4 Qxf4 18. Nxf4 Bf8 $11) (17. b3 $1 $16 {[%cal Rb3a4]} Qd7 18. Qxf4) 17... Nd7 {[%emt 0:01:38]} (17... Bf8 $11) 18. Be4 {[%emt 0:13:24]} Ng7 {[%emt 0:02:54]} 19. d4 {[%emt 0:00:36]} c4 {[%emt 0:02:21] [#]} 20. Qe2 {[%emt 0:03:01]} (20. Bc2 $1 $16 {[%cal Rc2a4]} Qb5 21. a4) 20... Rde8 $11 {[%emt 0:00:21]} 21. Bc2 {[%emt 0:06:58]} Qa6 {[%emt 0:00:28]} (21... Qb5 $11) 22. Qf3 $16 {[%emt 0:00:09] White is more active.} Bg5 {[%emt 0:01:46]} 23. Ng2 {[%emt 0:00:17]} Re7 {[%emt 0:01:48]} (23... Rhf8 $142) 24. g4 {[%emt 0:01:55]} (24. Rhe1 $142 {Hoping for Rxe7.} Rxe1 25. Rxe1) 24... Nf6 $2 {[%emt 0:02:02]} (24... Qa5 $16) 25. gxh5 $2 {[%emt 0:01:35]} ({Better is} 25. Be3 $18 Rxe3 26. Nxe3) 25... Ngxh5 $11 {[%emt 0:00:51]} 26. Rhe1 {[%emt 0:11:24]} Rhe8 {[%emt 0:00:25]} (26... Rc7 $11) 27. Be3 {[%emt 0:01:31]} (27. Rxe7 $1 $14 Rxe7 28. Ne3) 27... Bxe3 {[%emt 0:00:40]} 28. Rxe3 {[%emt 0:00:08]} Qb5 {[%emt 0:01:17]} 29. Rde1 {[%emt 0:00:45]} (29. Rxe7 $11 {keeps the balance.} Rxe7 30. Ne3) 29... Qxd5 $17 {[%emt 0:01:03]} 30. Qf1 {[%emt 0:04:57]} Rxe3 {[%emt 0:03:39]} 31. Nxe3 {[%emt 0:00:11]} Qe6 {[%emt 0:00:31]} 32. Ng2 {[%emt 0:08:37]} (32. Kc1 $142) 32... Qxh3 {[%emt 0:01:10] ...Rxe1+ is the strong threat.} 33. Qxc4+ {[%emt 0:00:14]} Kd8 {[%emt 0:01:48]} 34. Rxe8+ {[%emt 0:00:52]} Nxe8 {[%emt 0:01:08]} 35. Be4 {[%emt 0:00:18]} Qg4 {[%emt 0:07:25][%cal Rg4d1]} 36. Qd3 {[%emt 0:00:18] Prevents Qd1+.} Qd7 {[%emt 0:03:01]} 37. Qf3 {[%emt 0:00:38]} Kc8 {[%emt 0:00:32]} 38. a3 {[%emt 0:00:28] Weighted Error Value: White=0.39/Black=0.28 (precise)} 1/2-1/2

[Event "1st Bella Italia International 2022"]
[Site "Lignano"]
[Date "2022.08.20"]
[Round "6.15"]
[White "Zuttioni, Federico"]
[Black "Tencati, Giuseppe"]
[Result "1-0"]
[ECO "B12"]
[WhiteElo "2161"]
[BlackElo "2055"]
[Annotator "ChessBase"]
[PlyCount "67"]
[EventDate "2022.08.18"]
[EventCountry "ITA"]
[SourceTitle "playchess.com"]
[Source "ChessBase"]
[SourceQuality "1"]
[TimeControl "5400+30"]

1. e4 {[%emt 0:00:05]} c6 {[%emt 0:00:08]} 2. d4 {[%emt 0:00:26]} d5 {[%emt 0:00:15]} 3. e5 {[%emt 0:01:02]} Bf5 {[%emt 0:00:07]} 4. Nf3 {[%emt 0:00:27]} e6 {[%emt 0:00:34]} 5. Be2 {[%emt 0:00:47]} c5 {[%emt 0:01:29]} 6. Be3 {[%emt 0:00:56]} Qb6 {[%emt 0:00:31]} 7. Nc3 {[%emt 0:00:45]} Nc6 {[%emt 0:00:28]} 8. dxc5 {[%emt 0:03:04]} Bxc5 {[%emt 0:18:27]} 9. Bxc5 {[%emt 0:00:57]} Qxc5 {[%emt 0:00:08]} 10. Nb5 {[%emt 0:00:55]} Kf8 {[%emt 0:01:48]} 11. c3 {[%emt 0:02:07]} Nge7 {[%emt 0:00:47]} 12. O-O {[%emt 0:46:54]} Bg4 {[%emt 0:22:40]} 13. Nfd4 {[%emt 0:03:55]} Nxd4 {[%emt 0:05:57]} 14. Nxd4 {[%emt 0:04:54]} Bxe2 {[%emt 0:00:38]} 15. Qxe2 {[%emt 0:00:07]} Nc6 {[%emt 0:04:18]} 16. Rad1 {[%emt 0:00:55]} g6 {[%emt 0:04:09]} 17. Qe3 {[%emt 0:02:28]} Kg8 {[%emt 0:03:39]} 18. Rfe1 {[%emt 0:01:38]} h6 {[%emt 0:02:52]} 19. Nxc6 {[%emt 0:04:02]} Qxc6 {[%emt 0:00:48]} 20. Rd4 {[%emt 0:00:17]} Qc5 {[%emt 0:21:57]} 21. c4 {[%emt 0:08:18]} Rd8 {[%emt 0:03:24]} 22. Red1 {[%emt 0:02:06]} Kg7 {[%emt 0:00:47]} 23. Qf4 {[%emt 0:03:02]} Qe7 {[%emt 0:00:22]} 24. h3 {[%emt 0:01:58]} Qg5 {[%emt 0:01:39]} 25. Qxg5 {[%emt 0:00:56]} hxg5 {[%emt 0:00:02]} 26. cxd5 {[%emt 0:00:12]} exd5 {[%emt 0:00:30]} 27. Rxd5 {[%emt 0:00:13]} Rxd5 {[%emt 0:00:07]} 28. Rxd5 {[%emt 0:00:05]} Rc8 {[%emt 0:01:06]} 29. Rd7 {[%emt 0:00:23]} Rc1+ {[%emt 0:00:13]} 30. Kh2 {[%emt 0:00:07]} Rc2 {[%emt 0:00:10]} 31. Rxb7 {[%emt 0:00:15]} Rxf2 {[%emt 0:00:04]} 32. e6 {[%emt 0:00:21]} Re2 {[%emt 0:00:57]} 33. Rxf7+ {[%emt 0:05:05]} Kg8 {[%emt 0:00:08]} 34. Rxa7 {[%emt 0:00:10]} 1-0

[Event "1st Bella Italia International 2022"]
[Site "Lignano"]
[Date "2022.08.20"]
[Round "6.16"]
[White "Sala, Giulia"]
[Black "Bettalli, Francesco"]
[Result "1/2-1/2"]
[ECO "B34"]
[WhiteElo "1958"]
[BlackElo "2237"]
[Annotator "NA RC"]
[PlyCount "61"]
[EventDate "2022.08.18"]
[EventCountry "ITA"]
[SourceTitle "playchess.com"]
[Source "ChessBase"]
[SourceQuality "1"]
[TimeControl "5400+30"]

1. e4 {[%emt 0:00:02]} c5 {[%emt 0:15:36]} 2. Nf3 {[%emt 0:00:08]} Nc6 {[%emt 0:00:19]} 3. d4 {[%emt 0:00:08]} cxd4 {[%emt 0:00:03]} 4. Nxd4 {[%emt 0:00:08]} g6 {[%emt 0:00:02]} 5. Nc3 {[%emt 0:00:10]} Bg7 {[%emt 0:00:03]} 6. Be3 {[%emt 0:00:10]} Nf6 {[%emt 0:00:02]} 7. Be2 {[%emt 0:00:08]} O-O {[%emt 0:00:19]} 8. O-O {[%emt 0:00:13]} d5 {[%emt 0:00:06]} 9. exd5 {[%emt 0:04:15]} Nb4 {[%emt 0:00:07]} 10. Nb3 {[%emt 0:10:01]} Bf5 {[%emt 0:04:08]} 11. Nd4 {[%emt 0:01:15]} Bc8 {[%emt 0:07:20]} 12. Nb3 {[%emt 0:00:26]} Nfxd5 {[%emt 0:00:29]} 13. Nxd5 {[%emt 0:00:25]} Qxd5 {[%emt 0:00:27]} 14. c3 {[%emt 0:03:12]} Qxd1 {[%emt 0:00:24]} 15. Raxd1 {[%emt 0:01:26]} Nc6 {[%emt 0:01:44]} 16. Nd4 {[%emt 0:04:11]} Nxd4 {[%emt 0:00:21]} 17. Bxd4 {[%emt 0:00:07]} Be6 {[%emt 0:00:35]} 18. b3 {[%emt 0:03:52]} b6 {[%emt 0:01:23]} 19. Bf3 {[%emt 0:01:41]} Rac8 {[%emt 0:01:36]} 20. c4 {[%emt 0:04:00]} Rfd8 {[%emt 0:00:10]} 21. Bxg7 {[%emt 0:01:49]} Kxg7 {[%emt 0:00:02]} 22. Rfe1 {[%emt 0:03:00]} Kf6 {[%emt 0:00:09]} 23. Kf1 {[%emt 0:00:30]} g5 {[%emt 0:00:44]} 24. g3 {[%emt 0:03:27]} Bh3+ {[%emt 0:00:49]} 25. Ke2 {[%emt 0:01:51]} Bf5 {[%emt 0:00:53]} 26. Ke3 {[%emt 0:01:31]} Bc2 {[%emt 0:02:00]} 27. Rd2 {[%emt 0:02:42]} Bg6 {[%emt 0:00:29]} 28. Red1 {[%emt 0:01:18]} Rxd2 {[%emt 0:00:29]} 29. Rxd2 {[%emt 0:00:01]} Bf5 {[%emt 0:01:33]} 30. Be4 {[%emt 0:03:49]} Bxe4 {[%emt 0:00:12]} 31. Kd4 {[%emt 0:50:04]} 1/2-1/2